Workbook

Sheet G23013
A1: ITEM NO | F1: QUANTITY | G1: RATE | H1: AMOUNT
C3: BILL NO. 1
C5: PRELIMINARIES
C7: MEANING OF TERMS "€œTENDER / TENDERER"€
C9: Any reference to the words "€œTender" or "Tenderer" herein and/or in any other documentation shall be construed to have the same meaning as the words "Bid" or "Bidder"
C11: PRELIMINARIES
C13: The JBCC Preliminaries Edition 4.1 Code 2103, May 2005 for use with the JBCC Principal Building Agreement Edition 4.1 Code 2101, March 2005 is taken to be incorporated herein. The tenderer is deemed to have referred to these documents for the full intent and meaning of each clause. These clauses are referred to by number and heading only. Where standard clauses or options are not applicable to the contract such modifications or corrections as are necessary are given under each relevant clause. Where an item is not relevant to this specific contract such item is marked "N/A" signifying "Not Applicable"
C15: PRICING OF PRELIMINARIES
C17: Should Option A, as set out in clause B10.3.1 hereinafter be used for the adjustment of preliminaries then each item priced is to be allocated to one or more of the three categories Fixed, Value Related or Time Related and the respective amounts entered in the spaces provided under each item
C19: The following section A, read in conjunction with "The contract data, as contained in these tender documents", represent the changes made to the Contract pursuant to Clauses 3.10, 32.5 and 32.6. The contractors attention is therefore drawn to same, as no claims whatsoever will be entertained in respect of changes made to the Contract. Further, should any discrepancy be found between this document (Preliminaries) and the contract data, then this document shall take precedence.
C21: Items not priced in these Preliminaries shall be deemed to be provided free from any charge to the Employer
C23: SECTION A: JBCC PRINCIPAL BUILDING AGREEMENT
C25: DEFINITIONS
C27: DEFINITIONS AND INTERPRETATION (A1.0)
A29: 1 | C29: Clause 1.1 Definition of "€œCommencement Date"€ is added: | E29: CONT | F29: 0
A31: 2 | C31: "€œCOMMENCEMENT DATE"€ means the date that the agreement, made in terms of the Form of Offer and Acceptance, comes into effect | E31: CONT | F31: 0
A33: 3 | C33: Clause 1.1 Definition of "€œConstruction Guarantee"€ is amended by replacing it with the following: | E33: CONT | F33: 0
A35: 4 | C35: "€œCONSTRUCTION GUARANTEE"€ means a guarantee at call obtained by the contractor from an institution approved by the employer in terms of the employer"€™s construction guarantee form as selected in the schedule | E35: CONT | F35: 0
A37: 5 | C37: Clause 1.1 Definition of "€œConstruction Period"€ is amended by replacing it with the following: | E37: CONT | F37: 0
A39: 6 | C39: "€œCONSTRUCTION PERIOD"€ means the period commencing on the commencement date and ending on the date of practical completion | E39: CONT | F39: 0
A41: 7 | C41: Clause 1.1 Definition of "€œCorrupt Practice"€ is added: | E41: CONT | F41: 0
A43: 8 | C43: "€œCORRUPT PRACTICE"€ means the offering, giving, receiving or soliciting of anything of value to influence the action of a public official in the procurement process or in contract execution | E43: CONT | F43: 0
A45: 9 | C45: Clause 1.1 Definition of "€œFraudulent Practice"€ is added: | E45: CONT | F45: 0
A47: 10 | C47: "€œFRAUDULENT PRACTICE"€ means a misrepresentation of facts in order to influence a procurement process or the execution of a contract to the detriment of any tenderer and includes collusive practice among tenderers (prior to or after the tender submission) designed to establish tender prices at artificial non-competitive levels and to deprive the tenderer of the benefits of free and open competition | E47: CONT | F47: 0
A49: 11 | C49: Clause 1.1 Definition of "Interest" is amended by replacing it with the following: | E49: CONT | F49: 0
A51: 12 | C51: "€œINTEREST"€ means the interest rates applicable on this contract, whether specifically indicated in the relevant clauses or not, will be the rate as determined by the Minister of Finance, from time to time, in terms of section 80(1)(b) of the Public Finance Management Act, 1999 (Act No. 1 of 1999) | E51: CONT | F51: 0
A53: 13 | C53: Clause 1.1 Definition of "€œPrincipal Agent"€ is amended by replacing it with the following: | E53: CONT | F53: 0
A55: 14 | C55: "€œPRINCIPAL AGENT"€ means the person or entity appointed by the employer and named in the schedule as such. In the event of a principal agent not being appointed, then all the duties and obligations of a principal agent as detailed in the agreement shall be fulfilled by a representative of the employer as named in the schedule | E55: CONT | F55: 0
A57: 15 | C57: Clause 1.1 Definition of "€œSecurity"€ is amended by replacing it with the following: | E57: CONT | F57: 0
A59: 16 | C59: "€œSECURITY"€ means the form of security provided by the employer or contractor, as stated in the schedule, from which the contractor or employer may recover expense or loss | E59: CONT | F59: 0
A61: 17 | C61: Clause 1.6 is amended by replacing the words "prepaid, registered post, telefax or email" with "prepaid, registered post or telefax" | E61: CONT | F61: 0
A63: 18 | C63: Clause 1.6.4 is amended by replacing it with the following | E63: CONT | F63: 0
A65: 19 | C65: No clause | E65: CONT | F65: 0
A67: 20 | C67: Clause 1 is amended by the addition of the following: | E67: CONT | F67: 0
A69: 21 | C69: Clause 1.10 The copyright in all contract documents, contract drawings and records (irrespective of who prepared any of the aforesaid) related in any manner to the works shall vest in the employer and the contractor shall not furnish any information in connection with the works to any person or organization without the prior written approval of the employer to this effect other than subcontractors appointed for purposes of this agreement.We will need to renumber our amendments | E69: CONT | F69: 0
A71: 22 | C71: Clause 1.11 Any provision in this agreement that is or may become illegal, invalid or unenforceable in any jurisdiction shall be ineffective to the extent of such prohibition or un-enforceability in such jurisdiction and shall be treated as severed from the balance of this agreement in such jurisdiction, without invalidating the remaining provisions of this agreement in such jurisdiction or affecting it in any other jurisdiction | E71: CONT | F71: 0
A73: 23 | C73: Clause 1.12 If the contractor constitutes a joint venture, consortium or other unincorporated grouping of two or more persons:- | E73: CONT | F73: 0
A75: 24 | C75: Clause 1.12.1 these persons are deemed to be to be jointly and severally liable to the employer for the performance of this agreement | E75: CONT | F75: 0
A77: 25 | C77: Clause 1.12.2 these persons shall notify the employer of their leader who has authority to bind the contractor and each of these persons: and | E77: CONT | F77: 0
A79: 26 | C79: Clause 1.12.3 the contractor shall not alter its composition or legal status without the prior written consent of the employer | E79: CONT | F79: 0
A81: 27 | C81: Clause 1.13 The contract documents shall be taken to be mutually explanatory of one another but in the event of ambiguity, discrepancy, divergence or inconsistency in or between them, the JBCC Principal Building Agreement as amended by the special conditions shall prevail over all other contract documents. As between the JBCC Principal Building Agreement and the special conditions, the special conditions shall prevail. | E81: CONT | F81: 0
C83: F:............................. V:............................ T:............................ | E83: Item | F83: 1 | H83: =ROUND(F83*G83,2) -> 0.00
C85: OBJECTIVE AND PREPARATION
C87: OFFER, ACCEPTANCE AND PERFORMANCE OBLIGATIONS (A2.0)
A89: 28 | C89: Clause 2.0 | E89: CONT | F89: 0
C91: F:............................. V:............................ T:............................ | E91: Item | F91: 0 | H91: =ROUND(F91*G91,2) -> 0.00
C93: DOCUMENTS (A3.0)
A95: 29 | C95: Clause 3.0 | E95: CONT | F95: 0
A97: 30 | C97: Clause 3.2.1 is amended by replacing "€œ14.1"€ with "€œ14.0, as amended"€ | E97: CONT | F97: 0
A99: 31 | C99: Delete sub-clause 3.5 | E99: CONT | F99: 0
A101: 32 | C101: Clause 3.7 is amended by replacing the second sentence starting in line 2 with the following: | E101: CONT | F101: 0
A103: 33 | C103: The contractor shall keep a copy of all drawings, schedules, unpriced bills of quantities/lump sum document, contract instructions, minutes of site and other meetings, health and safety files as specified in the scope of work, risk register, claims and variation order register, labour records and subcontractors contracts on the site to which the employer, principal agent and agents shall have access at all times. The employer has the right to call for such further information from the contractor it deems necessary in the event it carries out any investigation or audit into potential fraud, corruption, fronting, health and safety incidents or verifying information the contractor has to supply to the employer in terms of this agreement. The Contractor shall ensure a similar right for the Employer with its subcontractors. | E103: CONT | F103: 0
A105: 34 | C105: Clause 3.10 is amended by replacing the second reference to employer with the word "employer" | E105: CONT | F105: 0
C107: F:............................. V:............................ T:............................ | E107: Item | F107: 0 | H107: =ROUND(F107*G107,2) -> 0.00
C109: DESIGN RESPONSIBILITY (A4.0)
A111: 35 | C111: Clause 4.0 : DESIGN RESPONSIBILITY | E111: CONT | F111: 0
A113: 36 | C113: Clause 4.1 is amended by the addition of the following: | E113: CONT | F113: 0
A115: 37 | C115: Notwithstanding the provisions of clause A4.1, where the contractor undertakes the design responsibility of any aspect of the works, he shall indemnify and hold free the employer and his agents from responsibility for any claim or proceeding whatsoever due to any fault including fault in the design detailing and calculations. In respect of the design responsibility undertaken by any nominated or selected sub-contractor, such sub-contractor shall similarly, indemnify and hold free the employer, his agents and the contractor from responsibility for any claim or proceeding whatsoever due to any fault including fault in the design, detailing and calculations except where such sub-contractor is from the mandatory partner in which case the liability shall vest in the contractor. | E115: CONT | F115: 0
A117: 38 | C117: Clauses 4.2 and 4.3 are deleted and replaced or amended as follows: 4.2 The contractor shall be responsible for any design of works undertaken by any subcontractor, including nominated or selected subcontractor. 4.3 in second line delete the word "€œselected"€. | E117: CONT | F117: 0
A119: 39 | C119: Clause 4.0 is amended by the addition of the following:- | E119: CONT | F119: 0
A121: 40 | C121: Clause 4.4 Without limiting or derogating from the employers rights under sub-clause 4.2, the contractor shall; | E121: CONT | F121: 0
A123: 41 | C123: Clause 4.4.1 ensure that every n/s or selected sub-contractor, simultaneously with the signing of the relevant n/s agreement, signs (in terms of a written signing authority acceptable to the principal agent) and delivers to the employer a design, materials and workmanship warranty and undertaking (design warranty) in favour of the employer. | E123: CONT | F123: 0
A125: 42 | C125: Clause 4.4.2 provide the employer evidence of suitable and sufficient professional indemnity insurance for all sub-contractors whose subcontract involves design work other than for temporary works. | E125: CONT | F125: 0
A127: 43 | C127: Clause 4.5 pending delivery of the design warranty and the required evidence of the professional indemnity insurance contractor shall, notwithstanding anything to the contrary in the agreement and without limiting or derogating from the employer"€™s rights under sub-clause 4.2, be responsible for issues that may arise, and pertaining to the relevant sub-contract works. | E127: CONT | F127: 0
C129: F:............................. V:............................ T:............................ | E129: Item | F129: 0 | H129: =ROUND(F129*G129,2) -> 0.00
C131: EMPLOYER"€™S AGENTS (A5.0)
A133: 44 | C133: Clause 5.0 | E133: CONT | F133: 0
A135: 45 | C135: Clause 5.1.2 is amended to include clauses 32.6.3, 34.3, 34.4 and 38.5.8 in terms of which the employer has retained its authority and has not given a mandate to the Principal Agent and in terms of which the employer shall sign all documents. | E135: CONT | F135: 0
C137: F:............................. V:............................ T:............................ | E137: Item | F137: 0 | H137: =ROUND(F137*G137,2) -> 0.00
C139: CONTRACTOR'S SITE REPRESENTATIVE (A6.0)
A141: 46 | C141: Clause 6.1 is amended by the addition of the following:- | E141: CONT | F141: 0
A143: 47 | C143: The names and CV"€™s of the contractors proposed management team shall be submitted to the principal agent prior to commencement on site and after the principal agent"€™s agreement on the composition and competence thereof has been obtained, no changes shall be made nor shall any member of the team be removed from the project while remaining in the employ of the contractor, without the principal agent"€™s prior written approval. | E143: CONT | F143: 0
C145: F:............................. V:............................ T:............................ | E145: Item | F145: 0 | H145: =ROUND(F145*G145,2) -> 0.00
C147: COMPLIANCE WITH LAWS AND REGULATIONS (A7.0)
A149: 48 | C149: Clause 7.0 | E149: CONT | F149: 0
A151: 49 | C151: Note: A separate clause has been included in Section C: Specific Preliminaries of the bills of quantities for the contractor to have the opportunity to price for all the requirements of the Occupational Health and Safety Act, Construction Regulations and Health and Safety Specification | E151: CONT | F151: 0
A153: 50 | C153: Clause 7.0 is amended by the addition of the following:- | E153: CONT | F153: 0
A155: 51 | C155: Clause 7.4 The Occupational Health and Safety Act No. 85 of 1993 and the Construction Regulations 2014 will in all respects be applicable to this contract. All obligations in respect of health and safety requirements of the Contractor are set out in the Scope of Work.Contractor"€™s liability as mandatory"€œNotwithstanding any actions which the employer may take, the contractor accepts sole liability for due compliance with the relevant duties, obligations, prohibitions, arrangements, and procedures imposed by the Occupational Health and Safety Act, 1993 (Act 85 of 1993), and all its regulations, including the Construction Regulations, 2014, for which the contractor is liable as mandatory. By entering into this agreement, it shall be deemed that the parties have agreed in writing to the above provisions in terms of Section 37 (2) of the Act and will enter into the mandatory agreement as set out in the Scope of Work. | E155: CONT | F155: 0
A157: 52 | C157: Clause 7.4.1 accepts that the employer will appoint him as the Principal Contractor (as defined and provided for under the Construction Regulations 2014 (as amended) and promulgated under the Occupational Health and Safety Act 85 of 1993 (as amended) for the site | E157: CONT | F157: 0
A159: 53 | C159: Clause 7.4.2 acknowledges and confirms that the contract sum includes a sufficient amount for proper compliance with the employer"€™s health and safety specification, the construction regulations, all applicable health and safety laws and regulations and the health and safety rules, guidelines and procedures provided for in this agreement and generally for the proper maintenance of health and safety in and about the execution of the works including all materials, labour, training, equipment and all other requirements necessary to ensure proper and complete health and safety implementation and management on site in accordance with applicable legislation; and | E159: CONT | F159: 0
A161: 54 | C161: Clause 7.4.3 undertakes, in and about the execution of the works, to comply with the Construction Regulations and with all applicable health and safety laws and regulations and rules and guidelines and procedures otherwise provided for under the agreement and shall ensure that all sub-contractors, employees and others under the contractor"€™s direction and control, likewise observe and comply with the foregoing. | E161: CONT | F161: 0
A163: 55 | C163: Clause 7.5 The employer reserves the right to pay direct (i.e) not through the contractor) for all or any permanent connections to local or other authority services, for which provisional amounts have been included within the contract documents. In the event of the employer paying direct for these charges, the contractor will not be entitled to a ten per cent (10%) mark-up in terms of clause 32.4. All such provisional amounts included in the contract sum will, as a result, be omitted | E163: CONT | F163: 0
C165: F:............................. V:............................ T:............................ | E165: Item | F165: 0 | H165: =ROUND(F165*G165,2) -> 0.00
C167: WORKS RISK (A8.0)
A169: 56 | C169: Clause 8.3.1 is amended to read as follows: | E169: CONT | F169: 0
A171: 57 | C171: The cost of making good such physical loss and repairing damage. | E171: CONT | F171: 0
A173: 58 | C173: Clause 8.5.6 is amended to read as follows: | E173: CONT | F173: 0
A175: 59 | C175: The use or occupation, after practical completion, of any part of the works by the employer, the employer's servants or agents; and those for whose acts or omissions they are responsible. | E175: CONT | F175: 0
C177: F:............................. V:............................ T:............................ | E177: Item | F177: 0 | H177: =ROUND(F177*G177,2) -> 0.00
C179: INDEMNITIES (A9.0)
A181: 60 | C181: Clause 9.0 | E181: CONT | F181: 0
C183: F:............................. V:............................ T:............................ | E183: Item | F183: 0 | H183: =ROUND(F183*G183,2) -> 0.00
C185: GENERAL INSURANCES (A10.0)
A187: 61 | C187: Clause 10.0 is amended by the addition of the following:- | E187: CONT | F187: 0
A189: 62 | C189: 10.5.1 Damage to the Works | E189: CONT | F189: 0
A191: 63 | C191: (a)" Without in any way limiting the contractor"€™s obligations in terms of the contract, the contractor shall bear the full risk of damage to and/or destruction of the works by whatever cause during construction of the works and hereby indemnifies and holds harmless the employer against any such damage. The contractor shall take such precautions and security measures and other steps for the protection and security of the works as the contractor may deem necessary | E191: CONT | F191: 0
A193: 64 | C193: (b) The contractor shall at all times proceed immediately to remove or dispose of any debris arising from damage to or destruction of the works and to rebuild, restore, replace and/or repair the works | E193: CONT | F193: 0
A195: 65 | C195: (c) The employer shall carry the risk of damage to or destruction of the works and materials paid for by the employer that is the result of the excepted risks as set out in 10.6 | E195: CONT | F195: 0
A197: 66 | C197: (d)" Where the employer bears the risk in terms of this contract, the contractor shall, if requested to do so, reinstate any damage or destroyed portions of the works and the costs of such reinstatement shall be measured and valued in terms of 32.0 hereof | E197: CONT | F197: 0
A199: 67 | C199: 10.6 Injury to Persons or loss of or damage to Properties | E199: CONT | F199: 0
A201: 68 | C201: (a) The contractor shall be liable for and hereby indemnifies the employer against any liability, loss, claim or proceeding whether arising in common law or by statute, consequent upon personal injuries to or the death of any person whomsoever arising out of or in the course of or caused by the execution of the works unless due to any act or negligence of any person for whose actions the employer is legally liable | E201: CONT | F201: 0
A203: 69 | C203: (b) The contractor shall be liable for and hereby indemnifies the employer against any liability, loss, claim or proceeding consequent upon loss of or damage to any moveable or immovable or personal property or property contiguous to the site, whether belonging to or under the control of the employer or any other body or person, arising out of or in the course of or by reason of the execution of the works unless due to any act or negligence of any person for whose actions the employer is legally liable | E203: CONT | F203: 0
A205: 70 | C205: (c) The contractor shall, upon receiving a contract instruction from the principal agent, cause the same to be made good in a perfect and workmanlike manner at his own cost and in default thereof the employer shall be entitled to cause it to be made good and to recover the cost thereof from the contractor or to deduct the same from amounts due to the contractor | E205: CONT | F205: 0
A207: 71 | C207: (d) The contractor shall be responsible for the protection and safety of such portions of the premises placed under his control by the employer for the purpose of executing the works until the issue of the certificate of practical completion | E207: CONT | F207: 0
A209: 72 | C209: (e) Where the execution of the works involves the risk of removal of or interference with support to adjoining properties including land or structures or any structures to be altered or added to, the contractor shall obtain adequate insurance and will remain adequately insured or insured to the specific limit stated in the contract against the death of or injury to persons or damage to such property consequent on such removal or interference with the support until such portion of the works has been completed | E209: CONT | F209: 0
A211: 73 | C211: (f) The contractor shall at all times proceed immediately at his own cost to remove or dispose of any debris and to rebuild, restore, replace and/or repair such property and to execute the works | E211: CONT | F211: 0
A213: 74 | C213: 10.7 High risk insurance | E213: CONT | F213: 0
A215: 75 | C215: In the event of the project being executed in a geological area classified as a "€œHigh Risk Area"€, that is an area which is subject to highly unstable subsurface conditions that might result in catastrophic ground movement evident by sinkhole or doline formation the following will apply: | E215: CONT | F215: 0
A217: 76 | C217: 10.7.1 Damage to the works | E217: CONT | F217: 0
A219: 77 | C219: The contractor shall, from the commencement date of the works until the date of the certificate of practical completion bear the full risk of and hereby indemnifies and holds harmless the employer against any damage to and/or destruction of the works consequent upon a catastrophic ground movement as mentioned above. The contractor shall take such precautions and security measures and other steps for the protection of the works as he may deem necessary | E219: CONT | F219: 0
A221: 78 | C221: When so instructed to do so by the principal agent, the contractor shall proceed immediately to remove and/or dispose of any debris arising from damage to or destruction of the works and to rebuild, restore, replace and/or repair the works, at the contractor"€™s own costs | E221: CONT | F221: 0
A223: 79 | C223: 10.7.2 Injury to persons or loss of or damage to property | E223: CONT | F223: 0
A225: 80 | C225: The contractor shall be liable for and hereby indemnifies and holds harmless the employer against any liability, loss, claim or proceeding arising at any time during the period of the contract whether arising in common law or by statute, consequent upon personal injuries to or the death of any person whomsoever resulting from, arising out of, or caused by a catastrophic ground movement as mentioned above | E225: CONT | F225: 0
A227: 81 | C227: The contractor shall be liable for and hereby indemnifies the employer against any and all liability, loss, claim or proceeding consequent upon loss of or damage to any moveable or immovable or personal property or property contiguous to the site, whether belonging to or under the control of the employer or any other body or person whomsoever arising out of or caused by a catastrophic ground movement, as mentioned above, which occurred during the period of the contract | E227: CONT | F227: 0
A229: 82 | C229: 10.7.3 It is the responsibility of the contractor to ensure that he has adequate insurance to cover his risk and liability as mentioned in 10.7.1 and 10.7.2. Without limiting the contractor"€™s obligations in terms of the contract, the contractor shall, within twenty-one (21) calendar days of the commencement date but before commencement of the works, submit to the employer proof of such insurance policy, if requested to do so | E229: CONT | F229: 0
A231: 83 | C231: 10.7.4 The employer shall be entitled to recover any and all losses and/or damages of whatever nature suffered or incurred consequent upon the contractor"€™s default of his obligations as set out in 10.7.1; 10.7.2 and 10.7.3. Such losses or damages may be recovered from the contractor or by deducting the same from any amounts still due under this contract or under any other contract presently or hereafter existing between the employer and the contractor and for this purpose all these contracts shall be considered one indivisible whole | E231: CONT | F231: 0
C233: F:............................. V:............................ T:............................ | E233: Item | F233: 0 | H233: =ROUND(F233*G233,2) -> 0.00
C235: LIABILITY INSURANCES (A11.0)
A237: 84 | C237: Clause 11.0 | E237: CONT | F237: 0
C239: F:............................. V:............................ T:............................ | E239: Item | F239: 0 | H239: =ROUND(F239*G239,2) -> 0.00
C241: EFFECTING INSURANCES (A12.0)
A243: 85 | C243: Clause 12.0 | E243: CONT | F243: 0
C245: F:............................. V:............................ T:............................ | E245: Item | F245: 0 | H245: =ROUND(F245*G245,2) -> 0.00
C247: NO CLAUSE(A13.0)
C249: SECURITY (A14.0)
A251: 86 | C251: Amend sub-clause 14.1 as follows: | E251: CONT | F251: 0
A253: 87 | C253: Clauses 14.1 - The employer shall have the right to choose the security to be provided in terms of 14.3 or 14.4 as stated in the schedule. The contractor shall provide the security required or chosen by the employer in the schedule substantially in the format prescribed in the tender documents that the contractor submitted a tender offer. The required security shall be provided in the time period prescribed by the employer in the conditional letter of acceptance of the contractor"€™s tender offer. | E253: CONT | F253: 0
A255: 88 | C255: Amend sub-clause 14.3 as follows: | E255: CONT | F255: 0
A257: 89 | C257: Retain clause 14.3 but in the last line of sub-clause 14.3.1 replace "€œtwelve point five (12.5%)"€ with "€œten (10%)"€. | E257: CONT | F257: 0
A259: 90 | C259: Amend sub-clause 14.4 as follows: | E259: CONT | F259: 0
A261: 91 | C261: Retain clause 14.4 but in the last line of sub-clause 14.4.1 replace "€œseven point five (7.5%)"€ with "€œten (10%)"€. | E261: CONT | F261: 0
A263: 92 | C263: Clause 14.7(a) The construction guarantee provided by the contractor shall remain valid for the term of the agreement until the issuing of the certificate of final completion. In case of extensions, the security must also be extended or replaced by another construction guarantee of the same value, with an effective term equal to the term of extension. If the contractor fails to keep valid security for the duration of the agreement, the principal agent shall deduct an amount of 10% from each interim payment certificate and withhold the amount until the contractor provides a valid construction guarantee. Once the contractor provides the valid construction guarantee, the principal agent will then release the amount held from each payment certificate in the next payment certificate. | E263: CONT | F263: 0
A265: 93 | C265: Amend sub-clause 14.7 as follows: | E265: CONT | F265: 0
A267: 94 | C267: Retain sub-clause 14.7 but in sub-clause 14.7.1 in the second and third line amend "€œtwo point five (2.5%)"€ to read "€œfive (5%)"€. | E267: CONT | F267: 0
A269: 95 | C269: Add sub-clause 14.9 as follows: | E269: CONT | F269: 0
A271: 96 | C271: A payment reduction of five (5%) of the value of each payment certificate up to a maximum of five (5%) of the contract sum will be applied until practical completion. At practical completion the amount withheld will be reduced to two point five (2.5%), which amount will reduce to nil (0%) when the final account is issued. The employer reserves the right to use retention money to correct defects where contractor fails to correct, fails or refuses to pay service provides or its subcontractors. | E271: CONT | F271: 0
C273: F:............................. V:............................ T:............................ | E273: Item | F273: 0 | H273: =ROUND(F273*G273,2) -> 0.00
C275: EXECUTION
C277: PREPARATION FOR AND EXECUTION OF THE WORKS (A15.0)
A279: 97 | C279: In sub-clause 15.1 replace "€œprincipal agent"€ with "€œemployer"€ | E279: CONT | F279: 0
A281: 98 | C281: Clause 15.1 is amended by the addition of the following clause: | E281: CONT | F281: 0
A283: 99 | C283: 15.1.4 An acceptable health and safety plan, required in terms of the Occupational Health and Safety Act, 1993 (Act 85 of 1993), within twenty-one (21) calendar days of commencement date | E283: CONT | F283: 0
A285: 100 | C285: Clause 15.2.1 is amended by replacing it with the following clause: | E285: CONT | F285: 0
A287: 101 | C287: Give the contractor possession of the site within ten (10) working days of the contractor complying with the terms of 15.1.4 | E287: CONT | F287: 0
C289: F:............................. V:............................ T:............................ | E289: Item | F289: 0 | H289: =ROUND(F289*G289,2) -> 0.00
C291: SITE AND ACCESS (A16.0)
A293: 102 | C293: Clause 16.0 is amended by deleting clauses 16.1 - 16.2 and replacing with the following:- | E293: CONT | F293: 0
A295: 103 | C295: 16.1 The contractor shall have unrestricted access to the site on being given possession thereof to fulfill his obligations [15.2.1 as amended]. Any restrictions to the site area, including servitudes and the like, that the contractor may not occupy are defined in the contract data. The contractor shall not extend his operations into such defined areas | E295: CONT | F295: 0
A297: 104 | C297: 16.2 The employer, principal agent and agents shall have reasonable access to the works, workshops and other places where work in terms of this agreement is being prepared, executed or stored | E297: CONT | F297: 0
A299: 105 | C299: 16.3 The contractor and n/s subcontractors shall be given reasonable access to the works and any section thereof subsequent to practical completion to fulfill their obligations [25.0, 26.0 as amended] | E299: CONT | F299: 0
A301: 106 | C301: 16.4 Where a geotechnic investigation has been undertaken by the employer the results thereof shall be provided in the contract data | E301: CONT | F301: 0
A303: 107 | C303: 16.5 The contractor shall be deemed to have inspected the site and any existing structures thereon and to be thoroughly acquainted with the conditions under which the works is to be executed including the means of access to the works, the condition of the roads and generally of all matters which may influence the execution of the works. | E303: CONT | F303: 0
A305: 108 | C305: 16.6 Where the existing premises will be in use and occupied during the execution of the works the contractor shall execute the works with the least interference with the general routine of the occupants of the premises and minimise any nuisance dust, noise or other causes. Specific requirements of the employer are described in detail in the contract data. The contractor shall put particular emphasis on traffic management and undertake this as and when necessary. | E305: CONT | F305: 0
A307: 109 | C307: 16.7 The employer has recorded all known services in the contract documents and annotated as to whether such services are to be terminated, diverted or continue in use either temporarily permanently. Where undocumented services are encountered the contractor shall immediately suspend all affected work in the vicinity and request the principal agent to issue a contract instruction in regard thereto | E307: CONT | F307: 0
A309: 110 | C309: 16.8 Trees and shrubs shall not be removed, cut back or disturbed without a contract instruction from the principal agent. Specific requirements of the employer are described in the contract data | E309: CONT | F309: 0
A311: 111 | C311: 16.9 Any relics, treasure or other articles of potential value found on the site shall remain the property of the employer and shall be handed over to the principal agent who shall be the sole arbiter of what is an article of value | E311: CONT | F311: 0
A313: 112 | C313: 16.10 Unless agreed to by the principal agent, the contractor shall not, at any time, use the lifts or completed portions of the works (whether practical completion has been achieved or not) for any purposes other than testing and/or commissioning. The storage of materials in premises once practical completion has been achieved shall not be permitted. The conveyance of construction personnel and materials in lifts is prohibited at all times. | E313: CONT | F313: 0
A315: 113 | C315: 16.11 Notwithstanding anything to the contrary in the agreement, the contractor acknowledges that access to the works and sections after the date of practical completion is subject to prior consent of the principal agent and in turn subject to the consent of the occupants or management of that part of the works | E315: CONT | F315: 0
A317: 114 | C317: 16.12 The contractor shall plan his methodology for executing the works in line with the parameters contained in the scope of works including necessary large and small plant, etc. No additional claims in this regard shall be entertained. | E317: CONT | F317: 0
C319: F:............................. V:............................ T:............................ | E319: Item | F319: 0 | H319: =ROUND(F319*G319,2) -> 0.00
C321: CONTRACT INSTRUCTIONS (A17.0)
A323: 115 | C323: Clause 17.0 | E323: CONT | F323: 0
A325: 116 | C325: Clause 17.1.11 is amended by deleting the words "and the appointment of nominated and selected subcontractors" | E325: CONT | F325: 0
A327: 117 | C327: Clause 17.1 is amended by the addition of the following: | E327: CONT | F327: 0
A329: 118 | C329: Clause 17.1.21 Changes to the sequence and timing of the works. | E329: CONT | F329: 0
A331: 119 | C331: Clause 17.1.22 Any acceleration to the approved Construction programme needs to follow due process. The contractor shall submit the necessary quotes, effects on the construction programme, including critical path and the necessary motivations, after which the Principal Agent will submit all documentation to the Client along with his recommendation, for final approval or otherwise | E331: CONT | F331: 0
C333: F:............................. V:............................ T:............................ | E333: Item | F333: 0 | H333: =ROUND(F333*G333,2) -> 0.00
C335: SETTING OUT OF THE WORKS (A18.0)
A337: 120 | C337: The following sub-clauses are hereby added to this clause:- | E337: CONT | F337: 0
A339: 121 | C339: 18.5 The contractor shall provide general attendance and all reasonable assistance to the employer's appointed land surveyor, or any other land surveyor who may be appointed by the employer. | E339: CONT | F339: 0
A341: 122 | C341: 18.6 The contractor shall notify the principal agent of any encroachments of adjoining foundations, buildings, structures, pavements, boundaries, etc. in order that the necessary arrangements may be made for the rectification of any such encroachments. | E341: CONT | F341: 0
A343: 123 | C343: 18.7 The contractor shall perform tolerance control checks regularly throughout the construction period and report on these at regular intervals to the principal agent in a format approved by the principal agent. Should the contractor fail to comply with this requirement to the satisfaction of the principal agent, progressively as the works are implemented, the employer shall be entitled to commission a registered land surveyor to do so on the contractor's behalf and at the contractor's expense | E343: CONT | F343: 0
C345: F:............................. V:............................ T:............................ | E345: Item | F345: 0 | H345: =ROUND(F345*G345,2) -> 0.00
C347: ASSIGNMENT (A19.0)
A349: 124 | C349: Clause 19.1 | E349: CONT | F349: 0
A351: 125 | C351: 19.1 The contractor does not cede, delegate or assign any of its rights or obligations to any person. | E351: CONT | F351: 0
A353: 126 | C353: 19.2 Notwithstanding the above, the employer may, on written notice to the contractor, cede and delegate, handover, its rights and obligations under this contract to a Related Party or a Client of the employer. On cession the Client becomes the employer and takes full responsibility. For the purpose hereof the above clause: | E353: CONT | F353: 0
A355: 127 | C355: 19.2.1 a "€œRelated Party"€ means any entity that directly or indirectly, through one or more intermediaries, controls or is controlled by, or is under common control with the employer and includes any other "€œOrgan of State"€ as defined in section 239 of the Constitution of the Republic of South Africa, 1996 and any entity or Organ of State for whom the Employer carries out the works or acts as an implementing agent, ("€œcontrol"€ means the beneficial ownership of the majority in number of the issued equity of any entity (or the whole or majority of the entity"€™s assets), and/or the right or ability to direct or otherwise control the entity or the votes attaching to the majority of the entity"€™s equity and "€œcontrolled"€ or "€œunder common control"€ shall have a similar meaning); and Client means the owner, funder and or sponsor of the project and or programme managed in terms of the MOA between the Client and DBSA. | E355: CONT | F355: 0
C357: F:............................. V:............................ T:............................ | E357: Item | F357: 0 | H357: =ROUND(F357*G357,2) -> 0.00
C359: NOMINATED SUBCONTRACTORS (A20.0)
A361: 128 | C361: Clause 20.0 | E361: CONT | F361: 0
A363: 129 | C363: Clause 20.1.3 is amended by replacing it with the following: | E363: CONT | F363: 0
A365: 130 | C365: No clause | E365: CONT | F365: 0
A367: 131 | C367: Note: See item B9.1 and B9.2 hereinafter for adjustment of attendance on nominated subcontractors executing work allowed for under provisional sums. Notwithstanding anything to the contrary contained in the agreement, the contractor shall be aware that profit and attendance shall only be certified once in respect of each provisional sum. | E367: CONT | F367: 0
C369: F:............................. V:............................ T:............................ | E369: Item | F369: 0 | H369: =ROUND(F369*G369,2) -> 0.00
C371: SELECTED SUBCONTRACTORS (A21.0)
A373: 132 | C373: Clause 21.0 | E373: CONT | F373: 0
A375: 133 | C375: The contractor cannot exclude the sub-contract tendered works from his responsibility, after the selected sub-contractor has been accepted, subject to the tendered conditions being met. | E375: CONT | F375: 0
A377: 134 | C377: Clause 21.1.4 Replace sub-clause 21.1.2 to 21.1.4 and 21.2 to 21.6 with the following: | E377: CONT | F377: 0
A379: 135 | C379: The contractor and principal agent shall appoint a selected subcontractor in accordance with the provisions of the Scope of Work. | E379: CONT | F379: 0
A381: 136 | C381: Clause 21.0 is amended by the addition of the following: | E381: CONT | F381: 0
A383: 137 | C383: Clause 21.11 The contractor will provide speciï¬c provisions regarding the use of all plant, equipment and services allowed for the various sub-contractors, to ensure comprehensive pricing by such sub-contractors. The relevant amendments to the sub-contract tender documents are to be clearly identified by the contractor and included in the sub-contract tender documentation and agreements to be signed with each of the sub-contractor and as such, the contractor shall be fully responsible for the management and cost of such sub-contracts. | E383: CONT | F383: 0
A385: 138 | C385: Note: See item B9.1 and B9.2 hereinafter for adjustment of attendance on selected subcontractors executing work allowed for under provisional sums. Notwithstanding anything to the contrary contained in the agreement, the contractor shall be aware that profit and attendance shall only be certified once in respect of each provisional sum. | E385: CONT | F385: 0
C387: F:............................. V:............................ T:............................ | E387: Item | F387: 0 | H387: =ROUND(F387*G387,2) -> 0.00
C389: EMPLOYER"€™S DIRECT CONTRACTORS (A22.0)
A391: 139 | C391: Clause 22.0 | E391: CONT | F391: 0
C393: F:............................. V:............................ T:............................ | E393: Item | F393: 0 | H393: =ROUND(F393*G393,2) -> 0.00
C395: CONTRACTOR"€™S DOMESTIC SUBCONTRACTORS (A23.0)
A397: 140 | C397: Amend Clause 23 by the addition of the following sub-clauses: | E397: CONT | F397: 0
A399: 141 | C399: 23.3 The contractor may not subcontract the whole of the work without the written instruction or approval of the employer. In such event the employer may require the contractor to cede the contract to the subcontractor. | E399: CONT | F399: 0
... 1687 more rows
